bitfinex-derivatives/quotes_ETHF0:USTF0_20251210
["timestamp","ask_amount","ask_price","bid_price","bid_amount"]
[1765408912999,5.6865,3336.2,3336.1,2.07754]
[1765408913406,3.853,3336.2,3336.1,2.07754]
[1765408913906,4.7779,3336.2,3336.1,2.07754]
[1765408914903,5.6865,3336.2,3336.1,2.07754]
[1765408915109,3.853,3336.2,3336.1,2.07754]
[1765408918405,5.05039512,3336.5,3336.4,2.01593]
[1765408918806,3.21229512,3336.5,3336.4,2.01593]
[1765408919605,4.09199512,3336.5,3336.4,2.01593]
[1765408920404,3.21229512,3336.5,3336.4,2.01593]
[1765408923413,5.00519512,3336.5,3336.4,2.01593]
[1765408925009,4.09199512,3336.5,3336.4,2.01593]
[1765408925206,0.88419512,3336.5,3336.4,2.01593]
[1765408925711,2.87592471,3336.5,3336.4,2.01593]
[1765408926113,1.79739512,3336.5,3336.4,2.01593]
[1765408926712,2.87592116,3336.5,3336.4,2.01593]
[1765408927706,1.96272116,3336.5,3336.4,2.01593]
[1765408928415,1.08302116,3336.5,3336.4,3.04341691]
[1765408928615,1.08302116,3336.5,3336.4,6.25121691]
[1765408929015,1.08297157,3336.5,3336.4,6.25121691]
[1765408929212,0.00449512,3336.5,3336.4,6.25121691]
[1765408929715,0.88419512,3336.5,3336.4,6.25121691]
[1765408930206,0.00449512,3336.5,3336.4,6.25121691]
[1765408930815,1.72179512,3336.5,3336.4,6.25121691]
[1765408931212,0.88419512,3336.5,3336.4,6.25121691]
[1765408931513,0.82799512,3336.5,3336.4,6.25121691]
[1765408931710,0.00449512,3336.5,3336.4,6.25121691]
[1765408936721,0.00449512,3336.5,3336.4,6.27711663]
[1765408941924,0.00449512,3336.5,3336.4,3.06931663]
[1765408942119,0.00449512,3336.5,3336.4,6.27711663]
[1765408943319,1.08292036,3336.5,3336.4,6.27711663]
[1765408943521,0.00449512,3336.5,3336.4,6.27711663]
[1765408944523,1.66559512,3336.5,3336.4,6.27711663]
[1765408944725,4.299905,3336.5,3336.4,0.14983]
[1765408945123,8.152905,3336.5,3336.4,0.14983]
[1765408945917,6.59701837,3336.5,3336.4,2.94231663]
[1765408948023,7.10801837,3336.5,3336.4,1.01203]
[1765408948222,5.75941837,3336.5,3336.4,2.83491663]
[1765408948825,6.57021837,3336.5,3336.4,2.83491663]
[1765408950221,6.57021837,3336.5,3336.4,1.78153]
[1765408954230,4.93591837,3336.5,3336.4,1.78153]
[1765408955130,3.85749512,3336.5,3336.4,1.78153]
[1765408955331,3.85749512,3336.5,3336.4,2.83491663]
[1765408955529,3.08635241,3336.5,3336.4,2.83491663]
[1765408955725,3.2078,3337.0,3336.9,1.74941]
[1765408955924,4.28622397,3337.0,3336.9,2.80279663]
[1765408956226,5.08382397,3337.0,3336.9,2.80279663]
[1765408956628,5.89462397,3337.0,3336.9,2.80279663]
[1765408957629,2.68682397,3337.0,3336.9,2.80279663]
[1765408958128,3.17102397,3337.0,3336.9,2.03329663]
[1765408958335,3.17102397,3337.0,3336.9,1.74941]
[1765408958534,2.68682397,3337.0,3336.9,1.74941]
[1765408960535,2.68682397,3337.0,3336.9,2.80279663]
[1765408960735,1.87602397,3337.0,3336.9,2.80279663]
[1765408962135,2.68682397,3337.0,3336.9,2.80279663]
[1765408962530,1.87602397,3337.0,3336.9,2.80279663]
[1765408963429,2.68682397,3337.0,3336.9,2.80279663]
[1765408963829,1.07842397,3337.0,3336.9,2.80279663]
[1765408965538,0.75098241,3337.0,3336.9,2.80279663]
[1765408965931,0.00449512,3337.3,3337.2,1.74939]
[1765408966134,0.00449512,3337.3,3337.2,2.80277663]
[1765408966642,0.00449512,3337.3,3337.2,6.01057663]
[1765408967639,0.80209512,3337.3,3337.2,6.01057663]
[1765408968335,6.00449512,3337.3,3336.5,0.4489]
[1765408968533,6.00449512,3337.3,3336.5,0.59873]
[1765408968534,3.2078,3337.0,3336.5,0.59873]
[1765408968735,1.05338663,3336.9,3336.5,0.59873]
[1765408969533,3.2078,3336.6,3336.5,0.59873]
[1765408970139,3.9224,3336.6,3336.5,1.42883]
[1765408970436,3.9224,3336.6,3336.5,0.59873]
[1765408970633,3.9224,3336.6,3336.5,1.42883]
[1765408971143,3.5651,3336.6,3336.5,2.19833]
[1765408971340,3.9109,3336.6,3336.5,2.19833]
[1765408971937,0.7031,3336.6,3336.5,2.19833]
[1765408975639,0.7031,3336.6,3336.5,0.59873]
[1765408976036,0.7031,3336.6,3336.5,1.42883]
[1765408976744,0.7031,3336.6,3336.5,0.59873]
[1765408976946,4.5561,3336.6,3336.5,0.14983]
[1765408977447,5.63470345,3336.6,3336.5,0.14983]
[1765408978449,7.24432671,3336.6,3336.5,0.14983]
[1765408979549,5.63470345,3336.6,3336.5,0.77973]
[1765408980448,7.24432671,3336.6,3336.5,0.77973]
[1765408980850,5.63470345,3336.6,3336.5,0.77973]
[1765408981955,5.28890345,3336.6,3336.5,2.90413]
[1765408982150,4.93160345,3336.6,3336.5,3.95751663]
[1765408982345,5.37460345,3336.6,3336.5,1.87053]
[1765408982949,5.37460345,3336.6,3336.5,2.90413]
[1765408983253,5.15310345,3336.6,3336.5,2.90413]
[1765408983849,4.93160345,3336.6,3336.5,2.90413]
[1765408984754,5.13100345,3336.6,3336.5,2.90413]
[1765408985151,5.31940345,3336.6,3336.5,2.90413]
[1765408986057,5.31940345,3336.6,3336.5,1.87053]
[1765408986258,5.31940345,3336.6,3336.5,2.90413]
[1765408986555,1.46640345,3336.6,3336.5,2.90413]
[1765408987467,1.07860345,3336.6,3336.5,2.90413]
[1765408987961,4.82191838,3337.3,3337.2,2.1244]
[1765408988162,0.00449512,3337.3,3337.2,3.17778663]
[1765408988368,1.08939512,3337.3,3337.2,15.03278663]
[1765408989159,0.00449512,3337.3,3337.2,15.03278663]
[1765408989358,2.20249512,3337.3,3337.2,2.1244]
[1765408989564,0.00449512,3337.3,3337.2,14.12919]
[1765408992873,1.12149512,3337.3,3337.2,14.12919]
[1765408993169,0.00449512,3337.3,3337.2,14.12919]
[1765408994469,1.12149512,3337.3,3337.2,14.12919]
[1765408994969,0.00449512,3337.3,3337.2,14.12919]
[1765408996772,0.00449512,3337.3,3337.2,15.15578175]
[1765408999773,5.3949,3337.8,3337.7,2.41897]
[1765408999968,6.47306157,3337.8,3337.7,2.41897]
[1765409000369,5.3949,3337.8,3337.7,2.41897]
[1765409001776,5.3949,3337.8,3337.7,1.28697]
[1765409003073,5.3949,3337.8,3337.7,13.13797]
[1765409004180,5.3949,3337.8,3337.7,1.28697]
[1765409004480,5.3949,3337.8,3337.7,13.13797]
[1765409005077,5.3949,3337.8,3337.7,14.26997]
[1765409005674,2.1871,3337.8,3337.7,14.26997]
[1765409007379,0.00449512,3338.1,3338.0,0.14976]
[1765409007580,2.19964408,3338.1,3338.0,1.96286]
[1765409007779,2.19964408,3338.1,3338.0,3.09486]
[1765409007976,3.26974408,3338.1,3338.0,0.14976]
[1765409008171,2.1109,3337.8,3337.7,0.00449512]
[1765409008380,2.1109,3336.8,3336.7,0.14981]
[1765409008680,6.39719027,3336.8,3336.7,0.14981]
[1765409012182,6.39719027,3336.8,3336.7,1.20331]
[1765409012378,4.28629027,3336.8,3336.7,2.21441]
[1765409012578,5.35159027,3336.8,3336.7,2.21441]
[1765409013780,4.28629027,3336.8,3336.7,2.21441]
[1765409013979,2.14379027,3336.8,3336.7,2.21441]
[1765409014380,1.07843274,3336.8,3336.7,2.21441]
[1765409014783,4.2731,3337.2,3337.1,2.2144]
[1765409015091,4.28620423,3337.2,3337.1,2.2144]
[1765409016291,5.35150423,3337.2,3337.1,2.2144]
[1765409016491,6.39710423,3337.2,3337.1,2.2144]
[1765409016890,5.35150423,3337.2,3337.1,2.2144]
[1765409017091,4.28620423,3337.2,3337.1,2.2144]
[1765409018494,5.35150423,3337.2,3337.1,2.2144]
[1765409019188,2.14370423,3337.2,3337.1,2.2144]
[1765409019886,1.07840423,3337.2,3337.1,2.2144]
[1765409023686,2.14320423,3337.2,3337.1,2.2144]
[1765409023881,3.16690423,3337.2,3337.1,2.2144]
[1765409024093,3.16690423,3337.2,3337.1,0.1498]
[1765409024290,3.16690423,3337.2,3337.1,2.2144]
[1765409026591,6.37470423,3337.2,3337.1,0.1498]
[1765409027894,6.33410423,3337.2,3337.1,1.2033]
[1765409028494,6.33410423,3337.2,3337.1,0.1498]
[1765409028994,6.23220423,3337.2,3337.1,1.2033]
[1765409030097,6.23220423,3337.2,3337.1,2.2144]
[1765409030286,6.22220423,3337.2,3337.1,0.1498]
[1765409030488,6.22220423,3337.2,3337.1,1.2033]
[1765409030689,6.22220423,3337.2,3337.1,0.1498]
[1765409031287,5.25920423,3337.2,3337.1,1.2033]
[1765409031484,6.21220423,3337.2,3337.1,2.2144]
[1765409031689,6.21220423,3337.2,3337.1,0.1498]
[1765409032593,4.28620423,3337.2,3337.1,2.2144]
[1765409032995,1.07840423,3337.2,3337.1,2.2144]
[1765409033295,2.01150423,3337.2,3337.1,2.2144]
[1765409034293,1.07840423,3337.2,3337.1,2.2144]
[1765409035389,2.91510423,3337.2,3337.1,0.1498]
[1765409035590,6.12290423,3337.2,3337.1,1.2033]
[1765409035788,6.12290423,3337.2,3337.1,0.1498]
[1765409039095,2.91510423,3337.2,3337.1,2.0547]
[1765409039290,1.07840423,3337.2,3337.1,2.0547]
[1765409040598,5.99660423,3337.2,3337.1,0.1498]
[1765409040898,2.78880423,3337.2,3337.1,2.0547]
[1765409041100,2.78880423,3337.2,3337.1,0.1498]
[1765409041296,7.60591623,3337.2,3337.1,0.1498]
[1765409041599,5.99660423,3337.2,3337.1,0.1498]
[1765409043105,1.3722,3336.5,3336.3,3.2078]
[1765409043403,2.45060423,3336.5,3336.3,3.2078]
[1765409043605,2.45060423,3336.5,3336.4,0.95899512]
[1765409043800,2.45060423,3336.5,3336.4,0.00449512]
[1765409044497,2.45060423,3336.5,3336.4,0.15432512]
[1765409047303,1.07840423,3336.5,3336.4,2.05922512]
[1765409050510,1.75020423,3336.5,3336.4,2.05922512]
[1765409052111,1.07840423,3336.5,3336.4,2.05922512]
[1765409052505,1.70310423,3336.5,3336.4,2.05922512]
[1765409055409,1.07840423,3336.5,3336.4,2.05922512]
[1765409055714,4.23e-06,3336.5,3336.4,2.05922512]
[1765409056408,1.84550423,3336.5,3336.4,2.05922512]
[1765409057706,4.23e-06,3336.5,3336.4,0.15432512]
[1765409058312,1.84550423,3336.5,3336.4,0.15432512]
[1765409058612,0.91830423,3336.5,3336.4,1.96572512]
[1765409059114,4.23e-06,3336.5,3336.4,1.05272512]
[1765409059305,0.91830423,3336.5,3336.4,1.96572512]
[1765409059509,1.84550423,3336.5,3336.4,1.96572512]
[1765409060715,1.84550423,3336.5,3336.4,1.06732512]
[1765409060920,2.35090423,3336.5,3336.4,0.15432512]
[1765409063820,4.23e-06,3336.5,3336.4,1.96572512]
[1765409064113,1.84550423,3336.5,3336.4,1.06732512]
[1765409064718,1.84550423,3336.5,3336.4,0.15432512]
[1765409065214,1.84550423,3336.5,3336.4,1.06732512]
[1765409065418,1.84550423,3336.5,3336.4,1.96572512]
[1765409066214,0.91830423,3336.5,3336.4,1.96572512]
[1765409066619,1.84550423,3336.5,3336.4,1.96572512]
[1765409067721,1.84550423,3336.5,3336.4,1.06732512]
[1765409069728,1.84550423,3336.5,3336.4,1.96572512]
[1765409070125,1.84550423,3336.5,3336.4,1.06732512]
[1765409070525,1.84550423,3336.5,3336.4,1.97542512]
[1765409071331,1.84550423,3336.5,3336.4,1.06732512]
[1765409071727,3.38839936,3336.5,3336.4,0.15432512]
[1765409071927,3.94998814,3336.5,3336.4,0.15432512]
[1765409072127,5.00378327,3336.5,3336.4,0.15432512]
[1765409072430,3.38839936,3336.5,3336.4,0.15432512]
[1765409075326,1.8284,3336.1,3336.0,0.00270489]
[1765409075638,6.08999936,3336.1,3336.0,0.00270489]
[1765409076025,7.70240333,3336.1,3336.0,0.00270489]
[1765409076626,7.70240333,3336.1,3336.0,0.15255489]
[1765409077035,6.08999936,3336.1,3336.0,0.15255489]
[1765409078235,5.03620423,3336.1,3336.0,1.08215489]
[1765409078436,5.03620423,3336.1,3336.0,2.52845489]
[1765409078625,5.03620423,3336.1,3336.0,1.62035489]
[1765409078826,5.03620423,3336.1,3336.0,0.15255489]
[1765409090543,8.88920423,3336.1,3336.0,0.15255489]
[1765409092745,1.8284,3335.8,3335.7,0.00449512]
[1765409092939,1.8284,3335.6,3335.5,0.14381377]
[1765409093251,7.69907289,3335.6,3335.5,0.14381377]
[1765409093848,7.70143219,3335.6,3335.5,0.14658859]
[1765409094150,1.8284,3334.6,3334.5,1.63362]
[1765409094651,2.9075581,3334.6,3334.5,2.54172]
[1765409095255,1.8284,3334.6,3334.5,2.54480795]
[1765409097059,1.8284,3334.6,3334.5,0.70710795]
[1765409097252,1.8284,3334.6,3334.5,0.15300795]
[1765409097654,2.90755379,3334.6,3334.5,1.08260795]
[1765409099053,6.11535379,3334.6,3334.5,0.14992]
[1765409099844,6.11535379,3334.6,3334.5,0.15363878]
[1765409100853,6.11535379,3334.6,3334.5,2.39023878]
[1765409101054,6.11535379,3334.6,3334.5,0.15363878]
[1765409101460,2.1278,3334.0,3333.9,0.14994]
[1765409101649,1.6539,3333.1,3333.0,0.5382]
[1765409101853,1.6539,3333.1,3333.0,2.2546]
[1765409102055,3.26176582,3334.2,3334.1,1.01123]
[1765409102356,2.73692519,3334.2,3334.1,1.86964871]
[1765409103151,1.65745948,3334.2,3334.1,1.86964871]
[1765409103351,0.80385948,3334.2,3334.1,1.86964871]
[1765409103556,1.65745948,3334.2,3334.1,0.15324871]
[1765409103859,1.65745948,3334.2,3334.1,1.01454871]
[1765409104459,1.65745948,3334.2,3334.1,1.86964871]
[1765409104856,0.00355948,3334.2,3334.1,1.86964871]
[1765409105962,0.8003,3334.9,3334.8,1.8663]
[1765409106161,2.73302899,3334.9,3334.8,1.8663]
[1765409107059,2.735277,3334.9,3334.8,1.8663]
[1765409107754,1.081377,3334.9,3334.8,2.92009513]
[1765409107949,0.00224801,3334.9,3334.8,2.92009513]
[1765409108153,0.00449512,3335.2,3335.1,1.86629]
[1765409108361,1.08351822,3335.2,3335.1,1.86629]
[1765409109268,0.00678891,3335.2,3335.1,1.86629]
[1765409110362,0.79578891,3335.2,3335.1,1.86629]
[1765409110960,1.63018891,3335.2,3335.1,1.82109]
[1765409111360,0.79578891,3335.2,3335.1,1.82109]
[1765409111556,0.00678891,3335.2,3335.1,1.82109]
[1765409112867,1.63018891,3335.2,3335.1,1.82109]
[1765409114260,0.79578891,3335.2,3335.1,1.82109]
[1765409114657,0.00678891,3335.2,3335.1,1.82109]
[1765409116159,3.853,3335.7,3335.6,1.82107]
[1765409116363,3.9968,3335.8,3335.7,1.82106]
[1765409116571,5.91004718,3335.8,3335.7,1.82106]
[1765409117167,5.07564718,3335.8,3335.7,1.82106]
[1765409117365,5.07869144,3335.8,3335.7,1.82106]
[1765409117566,5.91309144,3335.8,3335.7,1.82106]
[1765409118567,5.91309144,3335.8,3335.7,0.14986]
[1765409120168,9.76609144,3335.8,3335.7,0.14986]
[1765409122872,9.76609144,3335.8,3335.7,0.97116]
[1765409123072,9.76609144,3335.8,3335.7,0.14986]
[1765409123376,9.76609144,3335.8,3335.7,1.82106]
[1765409123672,9.76609144,3335.8,3335.7,0.97116]
[1765409123877,8.93169144,3335.8,3335.7,1.82106]
[1765409124278,9.76609144,3335.8,3335.7,1.82106]
[1765409125673,8.93169144,3335.8,3335.7,1.82106]
[1765409126175,9.76609144,3335.8,3335.7,1.82106]
[1765409126380,9.76609144,3335.8,3335.7,0.97116]
[1765409126879,9.76609144,3335.8,3335.7,1.82106]
[1765409128480,6.55829144,3335.8,3335.7,1.82106]
[1765409129379,5.72389144,3335.8,3335.7,1.82106]
[1765409129976,4.93489144,3335.8,3335.7,1.82106]
[1765409131276,4.93483076,3335.8,3335.7,1.82106]
[1765409131781,4.93483076,3335.8,3335.7,2.06426636]
[1765409131973,6.54183076,3335.8,3335.7,0.14986]
[1765409135275,8.14969658,3335.8,3335.7,0.14986]
[1765409136183,8.14969658,3335.8,3335.7,0.91326]
[1765409136574,8.14969658,3335.8,3335.7,0.14986]
[1765409136774,6.54183076,3335.8,3335.7,0.14986]
[1765409150382,6.54183076,3335.8,3335.7,0.91326]
[1765409150793,6.54183076,3335.8,3335.7,1.65086]
[1765409151090,2.68883076,3335.8,3335.7,0.14986]
[1765409154092,2.14722182,3336.1,3335.7,0.14986]
[1765409154093,1.61520986,3336.1,3336.0,0.14985]
[1765409154294,5.2884,3337.0,3336.9,1.65081]
[1765409154793,5.2884,3337.0,3336.9,0.91321]
[1765409154993,5.29106269,3337.0,3336.9,0.915455]
[1765409157686,5.29106269,3337.0,3336.9,0.152055]
[1765409158286,5.29106269,3337.0,3336.9,0.915455]
[1765409158996,5.29106269,3337.0,3336.9,0.152055]
[1765409160201,5.39686269,3337.0,3336.9,1.919955]
[1765409160500,5.39686269,3337.0,3336.9,1.013555]
[1765409161096,5.39686269,3337.0,3336.9,0.152055]
[1765409161700,4.50656269,3337.0,3336.9,1.919955]
[1765409161910,5.39686269,3337.0,3336.9,1.919955]
[1765409162314,5.39686269,3337.0,3336.9,1.013555]
[1765409164610,2.18906269,3337.0,3336.9,1.013555]
[1765409165010,0.00266269,3337.0,3336.9,1.919955]
[1765409165409,5.43196269,3337.0,3336.9,1.013555]
[1765409165708,5.43196269,3337.0,3336.9,1.919955]
[1765409165907,2.22416269,3337.0,3336.9,1.919955]
[1765409167309,1.33386269,3337.0,3336.9,1.919955]
[1765409167515,0.51136269,3337.0,3336.9,1.919955]
[1765409169418,0.00266269,3337.0,3336.9,1.919955]
[1765409169718,4.9206,3337.9,3337.8,1.91767]
[1765409170019,5.99887252,3337.9,3337.8,1.01127]
[1765409170412,5.99887252,3337.9,3337.8,0.14977]
[1765409170808,6.00196878,3337.9,3337.8,0.14977]
[1765409171924,0.5009,3337.5,3337.4,0.14978]
[1765409172219,2.1691,3337.5,3337.4,0.14978]
[1765409174020,2.1691,3337.5,3337.4,0.98198]
[1765409174218,2.1691,3337.5,3337.4,1.78088]
[1765409174414,1.3219,3337.5,3337.4,1.78088]
[1765409174622,2.1691,3337.5,3337.4,1.78088]
[1765409175119,2.1691,3337.5,3337.4,0.98198]
[1765409175521,2.1691,3337.5,3337.4,0.14978]
[1765409175723,1.6682,3337.2,3337.1,0.00449512]
[1765409176324,1.6682,3337.2,3337.1,0.83669512]
[1765409177627,1.6682,3337.2,3337.1,0.98649512]
[1765409177827,2.74660505,3337.2,3337.1,0.98649512]
[1765409178521,2.74660505,3337.2,3337.1,0.15429512]
[1765409180724,3.80009968,3337.2,3337.1,0.15429512]
[1765409183830,7.65309968,3337.2,3337.1,0.15429512]
[1765409184218,2.1691,3337.0,3336.8,0.14981]
[1765409184423,2.1691,3336.5,3336.4,0.14983]
[1765409184735,7.50879968,3336.5,3336.4,0.14983]
[1765409184924,2.1691,3335.5,3335.4,4.8389]
[1765409185224,2.1691,3335.5,3335.4,4.98878]
[1765409185428,2.17180387,3335.5,3335.4,4.99180473]
[1765409186231,3.25059795,3335.5,3335.4,4.99180473]
[1765409186627,3.25059795,3335.5,3335.4,3.36070473]
[1765409186929,3.25059795,3335.5,3335.4,4.99180473]
[1765409187831,1.90249795,3335.5,3335.4,4.99180473]
[1765409188132,0.00270387,3335.5,3335.4,4.99180473]
[1765409188329,2.09100387,3335.5,3335.4,4.99180473]
[1765409189633,1.29950387,3335.5,3335.4,4.99180473]
[1765409191727,1.29950387,3335.5,3335.4,1.78400473]
[1765409192332,2.09100387,3335.5,3335.4,1.78400473]
[1765409194632,2.09100387,3335.5,3335.4,0.15290473]
[1765409194831,2.09100387,3335.5,3335.4,1.83570473]
[1765409195826,2.09100387,3335.5,3335.4,0.99600473]
[1765409196634,2.09100387,3335.5,3335.4,0.15290473]
[1765409197224,2.09100387,3335.5,3335.4,0.99600473]
[1765409197430,2.09100387,3335.5,3335.4,1.83570473]
[1765409198530,1.29950387,3335.5,3335.4,1.83570473]
[1765409198729,0.00270387,3335.5,3335.4,1.83570473]
[1765409199334,0.83870387,3335.5,3335.4,1.83570473]
[1765409199636,1.63020387,3335.5,3335.4,1.83570473]
[1765409199836,2.10600387,3335.5,3335.4,0.99600473]
[1765409200134,2.10600387,3335.5,3335.4,0.15290473]
[1765409200933,2.10600387,3335.5,3335.4,0.99600473]
[1765409201835,2.10600387,3335.5,3335.4,1.83570473]
[1765409202339,1.31450387,3335.5,3335.4,1.83570473]
[1765409202533,2.10600387,3335.5,3335.4,1.83570473]
[1765409203534,2.10600387,3335.5,3335.4,0.99600473]
[1765409204443,2.10600387,3335.5,3335.4,1.83570473]
[1765409205032,2.10600387,3335.5,3335.4,0.99600473]
[1765409205237,2.10600387,3335.5,3335.4,1.83570473]
[1765409205934,1.31450387,3335.5,3335.4,1.83570473]
[1765409206136,0.83870387,3335.5,3335.4,1.83570473]
[1765409207237,0.00270387,3335.5,3335.4,1.83570473]
[1765409207838,0.83870387,3335.5,3335.4,1.83570473]
[1765409209141,1.91754487,3335.5,3335.4,1.83570473]
[1765409209340,3.18484487,3335.5,3335.4,0.15290473]
[1765409209545,3.18484487,3335.5,3335.4,12.00390473]
[1765409210547,3.18484487,3335.5,3335.4,12.84700473]
[1765409210845,3.18484487,3335.5,3335.4,12.00390473]
[1765409213646,3.18484487,3335.5,3335.4,0.15290473]
[1765409214243,4.79231934,3335.5,3335.4,0.15290473]
[1765409217640,3.18484487,3335.5,3335.4,0.15290473]
[1765409218145,5.85052375,3335.5,3335.4,0.15290473]
[1765409220143,1.80814487,3335.5,3335.4,1.74530473]
[1765409220446,3.00574487,3335.5,3335.4,1.74530473]
[1765409220744,4.05992972,3335.5,3335.4,0.15290473]
[1765409221049,5.67142375,3335.5,3335.4,0.15290473]
[1765409221251,3.00574487,3335.5,3335.4,0.91380473]
[1765409222053,3.00574487,3335.5,3335.4,0.15290473]
[1765409222244,4.05992972,3335.5,3335.4,0.00302473]
[1765409223449,3.00574487,3335.5,3335.4,0.00302473]
[1765409223648,4.05992972,3335.5,3335.4,0.00302473]
[1765409224945,4.05992972,3335.5,3335.4,0.15290473]
[1765409225254,4.61532416,3335.5,3335.4,1.66310473]
[1765409225556,3.00574487,3335.5,3335.4,1.66310473]
[1765409229747,5.66950901,3335.5,3335.4,0.15290473]
[1765409229938,5.66950901,3335.5,3335.4,0.91380473]
[1765409230139,4.05992972,3335.5,3335.4,0.15290473]
[1765409232148,1.4526,3335.2,3335.1,0.00449512]
[1765409232452,1.8997,3334.5,3334.4,0.14992]
[1765409232653,4.03284863,3334.5,3334.4,0.14992]
[1765409233248,4.03284863,3334.5,3334.4,0.15367783]
[1765409233655,2.97866378,3334.5,3334.4,0.15367783]
[1765409236154,2.97866378,3334.5,3334.4,0.86687783]
[1765409236753,2.97866378,3334.5,3334.4,0.15367783]
[1765409237350,4.03284863,3334.5,3334.4,0.15367783]
[1765409237552,1.4526,3334.2,3334.1,0.00449512]
[1765409237747,6.79354863,3334.2,3334.1,0.00449512]
[1765409238549,6.79354863,3334.2,3334.1,0.00766611]
[1765409240258,6.79354863,3334.2,3334.1,0.15759611]
[1765409240756,5.73936378,3334.2,3334.1,0.15759611]
[1765409246151,1.4526,3333.8,3333.7,0.14995]
[1765409246357,0.4471,3333.5,3332.9,4.6073]
[1765409247155,0.45159512,3333.5,3332.9,4.60940547]
[1765409247357,1.90419512,3333.5,3333.4,0.14996]
[1765409248149,2.98378155,3333.5,3333.4,0.14996]
[1765409248345,0.45159512,3333.5,3332.9,4.63470547]
[1765409249059,1.86359512,3333.5,3333.4,0.6786]
[1765409249657,1.86359512,3333.5,3333.4,0.14996]
[1765409250259,2.94318881,3333.5,3333.4,0.14996]
[1765409251653,2.94318881,3333.5,3333.4,1.54016]
[1765409252061,1.08408881,3333.5,3333.4,1.54016]
[1765409252254,2.92778881,3333.5,3333.4,1.54016]
[1765409252453,2.92778881,3333.5,3333.4,0.14996]
[1765409254065,2.92778881,3333.5,3333.4,0.82856]
[1765409254765,2.92778881,3333.5,3333.4,0.14996]
[1765409254963,2.92778881,3333.5,3333.4,0.82856]
[1765409255565,2.92778881,3333.5,3333.4,0.14996]
[1765409256365,1.8437,3333.0,3332.9,0.00210547]
[1765409256560,2.92567359,3333.0,3332.9,0.00210547]
[1765409257563,2.92567359,3333.0,3332.9,0.15209547]
[1765409259161,2.92567359,3333.0,3332.1,3.2078]
[1765409259366,1.07959369,3332.9,3332.1,3.2078]
[1765409259565,2.49159369,3332.8,3332.7,0.6786]
[1765409260168,1.07959369,3332.8,3332.7,1.54322739]
[1765409260369,2.49159369,3332.8,3332.7,0.15302739]
[1765409261169,2.49159369,3332.8,3332.7,0.83162739]
[1765409261368,2.49159369,3332.8,3332.7,1.54322739]
[1765409262564,0.77460369,3332.8,3332.7,7.54322739]
[1765409262763,2.57892182,3333.5,3333.4,1.54016]
[1765409262764,0.00449512,3333.5,3333.4,1.54016]
[1765409262969,3.2078,3334.1,3333.9,0.14994]
[1765409263161,1.8591,3334.0,3333.9,3.35774]
[1765409263362,1.8591,3334.0,3333.9,0.14994]
[1765409263765,1.86291969,3334.0,3333.9,0.14994]
[1765409272272,1.15091969,3334.0,3333.9,0.14994]
[1765409272668,1.86291969,3334.0,3333.9,0.14994]
[1765409273577,1.15091969,3334.0,3333.9,0.14994]
[1765409273877,1.86291969,3334.0,3333.9,0.14994]
[1765409274879,2.94224147,3334.0,3333.9,0.14994]
[1765409278191,1.53024147,3334.0,3333.9,1.17900545]
[1765409278479,0.45091969,3334.0,3333.9,1.17900545]
[1765409278680,0.3164521,3334.0,3333.9,1.17900545]
[1765409278882,0.3164521,3334.0,3333.9,7.17900545]
[1765409279081,0.00381969,3334.0,3333.9,7.17900545]
[1765409279376,0.4471,3334.5,3334.4,0.14992]
[1765409279581,0.4471,3334.5,3334.4,4.38678545]
[1765409280179,0.44992548,3334.5,3334.4,4.38678545]
[1765409280879,2.05432548,3334.5,3334.4,3.35772]
[1765409281084,3.13341612,3334.5,3334.4,3.35772]
[1765409283779,1.52901612,3334.5,3334.4,3.35772]
[1765409284081,0.44992548,3334.5,3334.4,3.35772]
[1765409285381,2.05432548,3334.5,3334.4,3.35772]
[1765409285989,2.05432548,3334.5,3333.6,0.00449512]
[1765409285990,9.58724424,3334.5,3333.6,0.00449512]
[1765409286179,1.02906545,3333.6,3333.0,0.4463]
[1765409286383,3.2078,3333.1,3333.0,0.4463]
[1765409286583,4.28698786,3333.1,3333.0,0.4463]
[1765409287789,0.0696,3332.9,3332.8,0.14999]
[1765409287985,1.14878786,3332.9,3332.8,0.14999]
[1765409289886,1.14878786,3332.9,3332.8,1.70259]
[1765409290280,1.14878786,3332.9,3332.8,0.14999]
[1765409290684,1.11398786,3332.9,3332.7,0.00752251]
[1765409290993,1.08098786,3332.8,3332.7,0.00752251]
[1765409293794,1.08098786,3332.8,3332.7,0.15752251]
[1765409294789,1.08098786,3332.8,3332.7,1.26182251]
[1765409295294,1.08098786,3332.8,3332.7,0.15752251]
[1765409300496,1.07918786,3332.8,3332.0,0.2226]
[1765409300703,3.2078,3332.1,3332.0,0.37263]
[1765409301105,3.2078,3332.1,3332.0,1.47693]
[1765409301510,3.21058518,3332.1,3332.0,0.37541611]
[1765409301805,3.21058518,3332.1,3332.0,0.15281611]
[1765409304909,5.90747807,3332.1,3331.5,0.4463]
[1765409305106,3.2078,3331.6,3331.5,0.4463]
[1765409305317,3.2078,3331.6,3331.5,1.5506]
[1765409305510,3.2078,3331.6,3331.5,2.76565]
[1765409305908,3.2078,3331.6,3331.5,2.7678846]
[1765409306106,3.2078,3331.6,3331.5,0.5985846]
[1765409306911,3.2078,3331.6,3331.5,0.1522846]
[1765409308207,3.2078,3331.6,3331.5,0.7397846]
[1765409310310,3.2078,3331.6,3331.5,0.1522846]
[1765409310909,4.28804659,3331.6,3331.5,0.7397846]
[1765409311510,4.28804659,3331.6,3331.5,2.8150846]
[1765409311716,3.2078,3331.6,3331.5,2.8150846]
[1765409313319,3.2078,3331.6,3331.5,0.7397846]
[1765409313320,5.3447913,3331.6,3331.5,0.7397846]
[1765409314515,5.3447913,3331.6,3331.5,1.7852846]
[1765409314720,4.28797844,3331.6,3331.5,1.7852846]
[1765409315022,4.28797844,3331.6,3331.5,2.8150846]
[1765409315519,4.28797844,3331.6,3331.5,1.7852846]
[1765409315719,4.28797844,3331.6,3331.5,2.8150846]
[1765409318423,5.88505407,3331.6,3331.5,2.8150846]
[1765409318818,4.28797844,3331.6,3331.5,2.8150846]
[1765409319422,5.88505407,3331.6,3331.5,2.8150846]
[1765409320314,4.28797844,3331.6,3331.5,2.8150846]
[1765409321319,1.59707563,3332.0,3331.5,6.5897346]
[1765409321524,1.02798518,3332.1,3332.0,2.81283]
[1765409322026,0.00278518,3332.1,3332.0,2.81283]
[1765409322227,1.02798518,3332.1,3332.0,2.81283]
[1765409322527,2.01398518,3332.1,3332.0,2.81283]
[1765409322726,2.01398518,3332.1,3332.0,2.22533]
[1765409323120,0.00278518,3332.1,3332.0,2.81283]